[Event "XLII Barbera Open 2019"]
[Site "Barbera"]
[Date "2019.07.08"]
[Round "5.1"]
[White "Peralta, Fernando"]
[Black "Oliva Castaneda, Kevel"]
[Result "1/2-1/2"]
[ECO "D35"]
[WhiteElo "2562"]
[BlackElo "2467"]
[Annotator "ChessBase"]
[PlyCount "36"]
[EventDate "2019.07.04"]
[EventType "swiss"]
[EventCountry "ESP"]
[SourceTitle "playchess.com"]
[Source "ChessBase"]
[SourceQuality "1"]
[TimeControl "5400+30"]

1. d4 {[%emt 0:00:37]} Nf6 {[%emt 0:00:00]} 2. c4 {[%emt 0:00:26]} e6 {[%emt 0:00:00]} 3. Nc3 {[%emt 0:01:35]} d5 {[%emt 0:00:43]} 4. cxd5 {[%emt 0:00:18]} Nxd5 {[%emt 0:00:05]} 5. e4 {[%emt 0:00:25]} Nxc3 {[%emt 0:00:05]} 6. bxc3 {[%emt 0:00:05]} c5 {[%emt 0:00:03]} 7. Nf3 {[%emt 0:00:20]} cxd4 {[%emt 0:00:04]} 8. cxd4 {[%emt 0:00:04]} Bb4+ {[%emt 0:00:05]} 9. Bd2 {[%emt 0:00:06]} Bxd2+ {[%emt 0:00:03]} 10. Qxd2 {[%emt 0:00:06]} O-O {[%emt 0:00:05]} 11. Bc4 {[%emt 0:00:29]} b6 {[%emt 0:00:14]} 12. O-O {[%emt 0:00:10]} Bb7 {[%emt 0:00:02]} 13. Rfe1 {[%emt 0:00:10]} Nd7 {[%emt 0:00:06]} 14. Rad1 {[%emt 0:00:23]} Rc8 {[%emt 0:00:30]} 15. Bb3 {[%emt 0:00:05]} Qf6 {[%emt 0:00:20]} 16. Re3 {[%emt 0:12:16]} Rfd8 {[%emt 0:00:44]} 17. Qe2 {[%emt 0:00:48]} Qf4 {[%emt 0:06:51]} 18. h3 {[%emt 0:11:15]} h6 {[%emt 0:01:44]} 1/2-1/2

[Event "XLII Barbera Open 2019"]
[Site "Barbera"]
[Date "2019.07.08"]
[Round "5.2"]
[White "Moskalenko, Viktor"]
[Black "Harutyunian, Tigran K."]
[Result "1-0"]
[ECO "E24"]
[WhiteElo "2500"]
[BlackElo "2539"]
[Annotator "ChessBase"]
[PlyCount "109"]
[EventDate "2019.07.04"]
[EventType "swiss"]
[EventCountry "ESP"]
[SourceTitle "playchess.com"]
[Source "ChessBase"]
[SourceQuality "1"]
[TimeControl "5400+30"]

1. d4 {[%emt 0:16:05]} Nf6 {[%emt 0:01:11]} 2. c4 {[%emt 0:01:14]} e6 {[%emt 0:00:26]} 3. Nc3 {[%emt 0:00:07]} Bb4 {[%emt 0:01:02]} 4. a3 {[%emt 0:00:51]} Bxc3+ {[%emt 0:00:25]} 5. bxc3 {[%emt 0:00:01]} d6 {[%emt 0:07:06]} 6. f3 {[%emt 0:03:16]} c5 {[%emt 0:02:42]} 7. e4 {[%emt 0:00:10]} Nc6 {[%emt 0:00:34]} 8. Be3 {[%emt 0:01:26]} b6 {[%emt 0:01:41]} 9. Bd3 e5 {[%emt 0:06:57]} 10. Ne2 {[%emt 0:02:22]} O-O {[%emt 0:00:49]} 11. d5 {[%emt 0:10:28]} Ne7 {[%emt 0:13:45]} 12. h4 {[%emt 0:06:45]} Kh8 {[%emt 0:07:44]} 13. g4 {[%emt 0:05:52]} Bxg4 {[%emt 0:05:06]} 14. fxg4 {[%emt 0:03:46]} Nxg4 {[%emt 0:00:05]} 15. Bd2 f5 16. exf5 {[%emt 0:34:24]} e4 {[%emt 0:17:45]} 17. Ng3 {[%emt 0:00:29]} Nf6 {[%emt 0:10:10]} 18. Nxe4 {[%emt 0:02:20]} Nxf5 {[%emt 0:02:26]} 19. Bg5 {[%emt 0:02:09]} Qe8 {[%emt 0:01:48]} 20. Bxf6 {[%emt 0:00:34]} Rxf6 {[%emt 0:00:04]} 21. Kd2 {[%emt 0:01:34]} Qe5 {[%emt 0:00:37]} 22. Rf1 {[%emt 0:01:31]} Rff8 {[%emt 0:02:26]} 23. Qf3 {[%emt 0:00:52]} b5 {[%emt 0:01:28]} 24. Rae1 {[%emt 0:01:32]} b4 {[%emt 0:01:09]} 25. axb4 {[%emt 0:01:19]} cxb4 {[%emt 0:00:03]} 26. Qf4 {[%emt 0:00:07]} Qe8 {[%emt 0:00:41]} 27. Ng5 {[%emt 0:01:37]} bxc3+ {[%emt 0:01:33]} 28. Kxc3 {[%emt 0:00:16]} Qd8 {[%emt 0:01:22]} 29. Bxf5 {[%emt 0:00:51]} Qa5+ {[%emt 0:00:03]} 30. Kd4 {[%emt 0:01:15]} Qc5+ {[%emt 0:02:15]} 31. Kd3 {[%emt 0:00:12]} Rab8 {[%emt 0:02:21]} 32. Qd4 {[%emt 0:00:31]} Qa3+ {[%emt 0:00:47]} 33. Kd2 {[%emt 0:01:05]} Rxf5 {[%emt 0:00:58]} 34. Rxf5 {[%emt 0:00:29]} Rb2+ {[%emt 0:00:36]} 35. Qxb2 {[%emt 0:00:07]} Qxb2+ {[%emt 0:00:04]} 36. Ke3 {[%emt 0:01:17]} g6 {[%emt 0:00:08]} 37. Rf3 {[%emt 0:00:38]} Qe5+ {[%emt 0:00:57]} 38. Ne4 {[%emt 0:00:14]} Kg7 {[%emt 0:01:31]} 39. Ref1 {[%emt 0:00:47]} a5 {[%emt 0:00:20]} 40. Rf7+ {[%emt 0:00:20]} Kh6 {[%emt 0:00:02]} 41. Ra7 {[%emt 0:00:25]} Qb2 {[%emt 0:01:28]} 42. Kd3 {[%emt 0:00:26]} Qa2 {[%emt 0:02:18]} 43. Nc3 {[%emt 0:00:29]} Qg2 {[%emt 0:00:59]} 44. Rff7 {[%emt 0:00:08]} Kh5 {[%emt 0:00:14]} 45. Rxh7+ {[%emt 0:00:07]} Kg4 {[%emt 0:00:03]} 46. Raf7 {[%emt 0:00:57]} Qg3+ {[%emt 0:02:30]} 47. Kd2 {[%emt 0:00:55]} Qe5 {[%emt 0:00:27]} 48. Ne2 {[%emt 0:00:40]} a4 {[%emt 0:00:23]} 49. Rf4+ {[%emt 0:00:30]} Kh3 {[%emt 0:00:02]} 50. Rhf7 {[%emt 0:00:06]} a3 {[%emt 0:00:19]} 51. Rf3+ {[%emt 0:00:26]} Kxh4 {[%emt 0:00:27]} 52. Rg3 {[%emt 0:00:21]} Qb2+ {[%emt 0:00:36]} 53. Ke3 {[%emt 0:00:47]} Qb6+ {[%emt 0:02:02]} 54. Kf3 {[%emt 0:00:30]} Qb3+ {[%emt 0:00:11]} 55. Kg2 {[%emt 0:00:30]} 1-0

[Event "XLII Barbera Open 2019"]
[Site "Barbera"]
[Date "2019.07.08"]
[Round "5.3"]
[White "Rios, Cristhian Camilo"]
[Black "Lopez Gonzalez, Abel Fabian"]
[Result "1-0"]
[ECO "D30"]
[WhiteElo "2520"]
[BlackElo "2355"]
[Annotator "ChessBase"]
[PlyCount "73"]
[EventDate "2019.07.04"]
[EventType "swiss"]
[EventCountry "ESP"]
[SourceTitle "playchess.com"]
[Source "ChessBase"]
[SourceQuality "1"]
[TimeControl "5400+30"]

1. d4 {[%emt 0:01:03]} d5 {[%emt 0:00:00]} 2. c4 {[%emt 0:00:34]} e6 {[%emt 0:00:00]} 3. Nf3 {[%emt 0:00:13]} c5 {[%emt 0:00:00]} 4. cxd5 {[%emt 0:00:32]} exd5 {[%emt 0:00:01]} 5. g3 {[%emt 0:00:30]} Nc6 {[%emt 0:00:08]} 6. Bg2 {[%emt 0:00:09]} Nf6 {[%emt 0:00:06]} 7. O-O {[%emt 0:00:08]} Be7 {[%emt 0:00:05]} 8. dxc5 {[%emt 0:00:06]} Bxc5 {[%emt 0:00:05]} 9. Qc2 {[%emt 0:00:08]} Bb6 {[%emt 0:00:23]} 10. Nc3 {[%emt 0:00:42]} O-O {[%emt 0:00:07]} 11. Bg5 {[%emt 0:00:51]} d4 {[%emt 0:00:12]} 12. Na4 {[%emt 0:08:20]} h6 {[%emt 0:01:25]} 13. Nxb6 {[%emt 0:02:46]} axb6 {[%emt 0:00:08]} 14. Bf4 {[%emt 0:01:23]} Ra5 {[%emt 0:10:22]} 15. Rfd1 {[%emt 0:00:58]} Bf5 {[%emt 0:00:16]} 16. Qd2 Rd5 {[%emt 0:24:32]} 17. Qe1 {[%emt 0:06:02]} Be4 {[%emt 0:05:00]} 18. Qf1 {[%emt 0:03:23]} Re8 19. h3 {[%emt 0:16:05]} Qe7 {[%emt 0:13:33]} 20. Bd2 {[%emt 0:05:24]} Rc5 {[%emt 0:17:21]} 21. e3 {[%emt 0:00:30]} Rc2 {[%emt 0:11:02]} 22. Nxd4 {[%emt 0:04:51]} Nxd4 {[%emt 0:00:00]} 23. exd4 {[%emt 0:00:15]} Bxg2 {[%emt 0:00:59]} 24. Qxg2 {[%emt 0:00:33]} Ne4 {[%emt 0:01:54]} 25. Be3 {[%emt 0:00:53]} Rxb2 {[%emt 0:02:59]} 26. d5 {[%emt 0:01:19]} Qd7 {[%emt 0:02:02]} 27. Rd3 {[%emt 0:02:39]} Nc5 28. Ra3 {[%emt 0:05:45]} Qb5 {[%emt 0:06:03]} 29. Qf3 {[%emt 0:01:15]} Rd8 30. Kg2 {[%emt 0:04:58]} Qc4 {[%emt 0:05:28]} 31. Rd1 {[%emt 0:01:14]} Rxa2 {[%emt 0:00:34]} 32. Bxc5 {[%emt 0:06:39]} bxc5 {[%emt 0:00:15]} 33. Re3 {[%emt 0:00:08]} Kf8 {[%emt 0:00:51]} 34. d6 {[%emt 0:00:19]} Qb5 {[%emt 0:00:37]} 35. Re7 {[%emt 0:00:33]} Qc6 {[%emt 0:00:14]} 36. Rd5 {[%emt 0:00:19]} f6 {[%emt 0:00:14]} 37. Qh5 {[%emt 0:00:17]} 1-0

[Event "XLII Barbera Open 2019"]
[Site "Barbera"]
[Date "2019.07.08"]
[Round "5.4"]
[White "Berdayes Ason, Dylan Isidro"]
[Black "Morales, Jhon Alexander"]
[Result "1/2-1/2"]
[ECO "B90"]
[WhiteElo "2461"]
[BlackElo "2422"]
[Annotator "ChessBase"]
[PlyCount "113"]
[EventDate "2019.07.04"]
[EventType "swiss"]
[EventCountry "ESP"]
[SourceTitle "playchess.com"]
[Source "ChessBase"]
[SourceQuality "1"]
[TimeControl "5400+30"]

1. e4 {[%emt 0:00:00]} c5 {[%emt 0:03:45]} 2. Nf3 {[%emt 0:00:00]} d6 {[%emt 0:00:07]} 3. d4 {[%emt 0:00:00]} cxd4 {[%emt 0:00:05]} 4. Nxd4 {[%emt 0:00:00]} Nf6 {[%emt 0:00:05]} 5. Nc3 {[%emt 0:00:00]} a6 {[%emt 0:00:06]} 6. Be3 {[%emt 0:00:00]} Ng4 {[%emt 0:00:58]} 7. Bc1 {[%emt 0:00:00]} Nf6 {[%emt 0:00:11]} 8. f3 {[%emt 0:00:00]} e6 {[%emt 0:05:25]} 9. Be3 {[%emt 0:00:10]} h5 {[%emt 0:00:13]} 10. Bc4 {[%emt 0:01:56]} Bd7 {[%emt 0:29:25]} 11. Qd2 {[%emt 0:01:39]} Qc7 {[%emt 0:01:39]} 12. Bb3 {[%emt 0:00:40]} Be7 {[%emt 0:05:26]} 13. O-O {[%emt 0:08:16]} Nc6 {[%emt 0:02:26]} 14. Nxc6 {[%emt 0:04:10]} Bxc6 {[%emt 0:00:49]} 15. Rae1 {[%emt 0:03:07]} h4 {[%emt 0:04:40]} 16. h3 {[%emt 0:01:46]} b5 {[%emt 0:05:43]} 17. a3 {[%emt 0:01:21]} Rd8 {[%emt 0:21:58]} 18. Qf2 {[%emt 0:05:50]} Rd7 {[%emt 0:00:30]} 19. Rd1 {[%emt 0:03:33]} Qb8 {[%emt 0:01:36]} 20. Rfe1 {[%emt 0:03:35]} O-O {[%emt 0:02:21]} 21. Rd2 {[%emt 0:06:22]} Rfd8 {[%emt 0:01:24]} 22. Bg5 {[%emt 0:07:32]} d5 {[%emt 0:04:22]} 23. Bxh4 {[%emt 0:04:11]} dxe4 {[%emt 0:00:25]} 24. Rxd7 {[%emt 0:00:07]} Rxd7 {[%emt 0:00:10]} 25. fxe4 {[%emt 0:01:46]} b4 {[%emt 0:00:28]} 26. axb4 {[%emt 0:03:51]} Qxb4 {[%emt 0:00:11]} 27. Kh1 {[%emt 0:00:50]} Nxe4 {[%emt 0:01:37]} 28. Nxe4 {[%emt 0:00:02]} Bxe4 {[%emt 0:00:09]} 29. Bxe7 {[%emt 0:00:29]} Rxe7 {[%emt 0:00:14]} 30. Rd1 {[%emt 0:02:50]} Bc6 {[%emt 0:03:41]} 31. Rd8+ {[%emt 0:04:39]} Re8 {[%emt 0:00:24]} 32. Rxe8+ {[%emt 0:00:18]} Bxe8 {[%emt 0:00:05]} 33. Qe2 {[%emt 0:09:25]} a5 {[%emt 0:00:24]} 34. Qe5 {[%emt 0:00:39]} Kf8 {[%emt 0:01:51]} 35. Kh2 {[%emt 0:00:52]} Bd7 {[%emt 0:00:17]} 36. Qc7 {[%emt 0:02:02]} Ke7 {[%emt 0:00:39]} 37. Qc4 {[%emt 0:00:04]} Qd6+ {[%emt 0:00:38]} 38. Kg1 {[%emt 0:01:23]} Qb6+ {[%emt 0:00:41]} 39. Kh1 {[%emt 0:00:17]} Bc6 {[%emt 0:01:14]} 40. Qc3 {[%emt 0:00:26]} g6 {[%emt 0:00:54]} 41. Kh2 {[%emt 0:01:13]} Bd7 {[%emt 0:02:06]} 42. Bc4 {[%emt 0:00:51]} Qc5 {[%emt 0:00:20]} 43. b3 {[%emt 0:02:25]} a4 {[%emt 0:00:38]} 44. bxa4 {[%emt 0:01:06]} Bxa4 45. Qd3 {[%emt 0:01:00]} Qe5+ {[%emt 0:00:44]} 46. Kh1 {[%emt 0:00:29]} Qe1+ {[%emt 0:00:41]} 47. Kh2 {[%emt 0:00:02]} Qe5+ {[%emt 0:00:17]} 48. Kh1 {[%emt 0:00:02]} Bc6 {[%emt 0:00:42]} 49. Bb3 {[%emt 0:02:04]} g5 {[%emt 0:00:26]} 50. Kg1 {[%emt 0:00:43]} f5 {[%emt 0:00:36]} 51. Qd2 {[%emt 0:00:42]} f4 {[%emt 0:01:09]} 52. Qf2 {[%emt 0:00:12]} Qe4 {[%emt 0:00:22]} 53. Qc5+ {[%emt 0:00:28]} Kf6 {[%emt 0:00:13]} 54. Qf8+ {[%emt 0:00:44]} Kg6 {[%emt 0:00:16]} 55. Qg8+ {[%emt 0:00:19]} Kf6 {[%emt 0:00:12]} 56. Qf8+ {[%emt 0:00:26]} Kg6 {[%emt 0:00:12]} 57. Qg8+ {[%emt 0:00:02]} 1/2-1/2

[Event "XLII Barbera Open 2019"]
[Site "Barbera"]
[Date "2019.07.08"]
[Round "5.5"]
[White "Hernandez, Cristian Andres"]
[Black "Munoz, Miguel"]
[Result "1/2-1/2"]
[ECO "B01"]
[WhiteElo "2355"]
[BlackElo "2511"]
[Annotator "ChessBase"]
[PlyCount "52"]
[EventDate "2019.07.04"]
[EventType "swiss"]
[EventCountry "ESP"]
[SourceTitle "playchess.com"]
[Source "ChessBase"]
[SourceQuality "1"]
[TimeControl "5400+30"]

1. e4 {[%emt 0:00:00]} d5 {[%emt 0:00:00]} 2. exd5 {[%emt 0:00:14]} Qxd5 {[%emt 0:00:00]} 3. Nc3 {[%emt 0:00:50]} Qa5 {[%emt 0:00:00]} 4. d4 {[%emt 0:00:44]} Nf6 {[%emt 0:00:04]} 5. Bd2 {[%emt 0:01:56]} Bg4 {[%emt 0:03:41]} 6. f3 {[%emt 0:02:03]} Bd7 7. Bc4 {[%emt 0:14:31]} Qb6 {[%emt 0:01:44]} 8. Qe2 {[%emt 0:09:45]} Nc6 {[%emt 0:06:16]} 9. d5 {[%emt 0:02:15]} Nd4 {[%emt 0:00:36]} 10. Qd3 {[%emt 0:01:42]} e5 {[%emt 0:06:14]} 11. O-O-O {[%emt 0:12:37]} Bf5 {[%emt 0:14:18]} 12. Ne4 {[%emt 0:00:29]} Nd7 {[%emt 0:03:07]} 13. c3 {[%emt 0:10:48]} Nc5 {[%emt 0:00:22]} 14. Qe3 {[%emt 0:00:03]} Nxf3 {[%emt 0:00:11]} 15. Nxc5 {[%emt 0:12:33]} Nxd2 {[%emt 0:02:27]} 16. Qxe5+ {[%emt 0:00:41]} Be7 {[%emt 0:00:31]} 17. Rxd2 {[%emt 0:02:18]} Qxc5 {[%emt 0:01:40]} 18. Qxf5 {[%emt 0:02:37]} Qxc4 {[%emt 0:06:55]} 19. Re2 {[%emt 0:01:24]} Qxa2 {[%emt 0:05:06]} 20. Qe4 {[%emt 0:05:54]} O-O-O {[%emt 0:07:17]} 21. Qxe7 {[%emt 0:07:25]} Qa1+ {[%emt 0:00:34]} 22. Kc2 {[%emt 0:07:38]} Rxd5 {[%emt 0:00:52]} 23. Re1 {[%emt 0:00:07]} Qa4+ {[%emt 0:00:11]} 24. Kc1 {[%emt 0:01:42]} Qa1+ {[%emt 0:01:33]} 25. Kc2 {[%emt 0:00:05]} Qa4+ {[%emt 0:00:08]} 26. Kc1 {[%emt 0:00:04]} Qa1+ {[%emt 0:03:47] Kb1 Qa4} 1/2-1/2

[Event "XLII Barbera Open 2019"]
[Site "Barbera"]
[Date "2019.07.08"]
[Round "5.6"]
[White "Vergara Jofre, Felipe"]
[Black "Sreeshwan Maralakshikari"]
[Result "0-1"]
[ECO "B12"]
[WhiteElo "2332"]
[BlackElo "2461"]
[Annotator "ChessBase"]
[PlyCount "92"]
[EventDate "2019.07.04"]
[EventType "swiss"]
[EventCountry "ESP"]
[SourceTitle "playchess.com"]
[Source "ChessBase"]
[SourceQuality "1"]
[TimeControl "5400+30"]

1. e4 {[%emt 0:00:00]} c6 {[%emt 0:00:14]} 2. d4 {[%emt 0:00:16]} d5 {[%emt 0:00:05]} 3. e5 {[%emt 0:00:05]} Bf5 {[%emt 0:00:02]} 4. c4 {[%emt 0:00:06]} e6 {[%emt 0:00:14]} 5. Nc3 {[%emt 0:00:05]} Nd7 {[%emt 0:00:45]} 6. a3 a5 {[%emt 0:05:06]} 7. cxd5 {[%emt 0:09:00]} cxd5 {[%emt 0:00:44]} 8. Bb5 {[%emt 0:05:32]} Ne7 {[%emt 0:03:06]} 9. Bg5 Qc7 {[%emt 0:00:05]} 10. Bxe7 {[%emt 0:05:25]} Bxe7 11. Nge2 {[%emt 0:15:27]} O-O {[%emt 0:08:56]} 12. Rc1 {[%emt 0:04:55]} Qd8 {[%emt 0:06:02]} 13. O-O {[%emt 0:04:47]} Nb6 {[%emt 0:00:16]} 14. Ng3 {[%emt 0:02:15]} Bg6 {[%emt 0:01:59]} 15. f4 Rc8 {[%emt 0:00:13]} 16. f5 {[%emt 0:09:56]} exf5 {[%emt 0:06:56]} 17. Nge2 {[%emt 0:07:35]} Bh5 {[%emt 0:11:45]} 18. Qb3 {[%emt 0:11:32]} Nc4 19. Nf4 Nd2 {[%emt 0:06:06]} 20. Qxd5 {[%emt 0:01:00]} Nxf1 {[%emt 0:00:00]} 21. Rxf1 {[%emt 0:14:22]} Bg6 22. Qxd8 {[%emt 0:00:25]} Rfxd8 {[%emt 0:01:28]} 23. d5 {[%emt 0:00:01]} Bc5+ {[%emt 0:08:15]} 24. Kh1 {[%emt 0:03:15]} Kf8 {[%emt 0:32:31]} 25. h4 Bd4 26. h5 {[%emt 0:02:20]} Bxe5 {[%emt 0:00:35]} 27. hxg6 hxg6 {[%emt 0:00:04]} 28. Nfe2 {[%emt 0:02:03]} Ke7 {[%emt 0:00:06]} 29. g3 {[%emt 0:00:26]} Rh8+ {[%emt 0:00:46]} 30. Kg2 {[%emt 0:02:15]} Rh6 {[%emt 0:02:15]} 31. Rd1 {[%emt 0:01:41]} Rch8 32. Bd3 {[%emt 0:00:02]} Rh2+ {[%emt 0:02:13]} 33. Kf3 {[%emt 0:00:54]} Bd6 {[%emt 0:00:54]} 34. Nb5 {[%emt 0:00:32]} Bc5 {[%emt 0:00:10]} 35. d6+ {[%emt 0:00:15]} Kd7 {[%emt 0:00:23]} 36. Nbd4 {[%emt 0:00:46]} Kxd6 37. b4 axb4 {[%emt 0:00:51]} 38. axb4 {[%emt 0:00:47]} Bb6 {[%emt 0:00:31]} 39. Bc4 {[%emt 0:00:53]} Ke5 {[%emt 0:00:13]} 40. Rd3 g5 {[%emt 0:00:04]} 41. Re3+ {[%emt 0:01:01]} Kf6 {[%emt 0:01:39]} 42. Rd3 Re8 {[%emt 0:00:05]} 43. g4 {[%emt 0:01:01]} Rh3+ 44. Kg2 Rxd3 {[%emt 0:00:36]} 45. Bxd3 {[%emt 0:00:33]} Bxd4 {[%emt 0:00:00]} 46. Nxd4 {[%emt 0:00:28]} Rd8 0-1

[Event "XLII Barbera Open 2019"]
[Site "Barbera"]
[Date "2019.07.08"]
[Round "5.7"]
[White "Sturt, Raven"]
[Black "Radnai, Adam"]
[Result "1-0"]
[ECO "D10"]
[WhiteElo "2429"]
[BlackElo "2309"]
[Annotator "NA"]
[PlyCount "67"]
[EventDate "2019.07.04"]
[EventType "swiss"]
[EventCountry "ESP"]
[SourceTitle "playchess.com"]
[Source "ChessBase"]
[SourceQuality "1"]
[TimeControl "5400+30"]

1. d4 {[%emt 0:00:00]} d5 {[%emt 0:00:00]} 2. c4 {[%emt 0:00:00]} c6 {[%emt 0:00:00]} 3. Nc3 {[%emt 0:00:00]} dxc4 {[%emt 0:00:02]} 4. e3 {[%emt 0:01:16]} b5 {[%emt 0:00:13]} 5. a4 {[%emt 0:01:19]} b4 {[%emt 0:00:01]} 6. Na2 {[%emt 0:01:09]} e6 {[%emt 0:02:56]} 7. Bxc4 {[%emt 0:00:18]} Nf6 {[%emt 0:00:23]} 8. Nf3 {[%emt 0:00:19]} Be7 {[%emt 0:01:46]} 9. Bd2 {[%emt 0:02:54]} a5 {[%emt 0:00:17]} 10. O-O {[%emt 0:00:20]} O-O {[%emt 0:07:00]} 11. Nc1 {[%emt 0:02:00]} c5 {[%emt 0:02:08]} 12. Nb3 {[%emt 0:06:21]} cxd4 {[%emt 0:07:54]} 13. Nbxd4 {[%emt 0:00:15]} Bb7 {[%emt 0:05:49]} 14. Rc1 {[%emt 0:13:42]} Qb6 {[%emt 0:08:41]} 15. Qe2 {[%emt 0:06:12]} Nbd7 {[%emt 0:01:18]} 16. Rfd1 {[%emt 0:00:10]} Nc5 {[%emt 0:06:24]} 17. b3 {[%emt 0:08:12]} Nfe4 {[%emt 0:00:31]} 18. Be1 {[%emt 0:00:36]} Bf6 {[%emt 0:01:58]} 19. Nb5 {[%emt 0:02:45]} Rad8 {[%emt 0:09:16]} 20. Nfd4 {[%emt 0:00:22]} e5 {[%emt 0:04:49]} 21. Nf5 {[%emt 0:01:13]} g6 {[%emt 0:00:14]} 22. Nh6+ {[%emt 0:06:49]} Kg7 {[%emt 0:00:13]} 23. Ng4 {[%emt 0:00:11]} Rxd1 {[%emt 0:13:01]} 24. Rxd1 {[%emt 0:00:22]} Rd8 {[%emt 0:00:41]} 25. f3 {[%emt 0:05:43]} Nd6 {[%emt 0:09:38]} 26. Nxf6 {[%emt 0:06:11]} Nxb5 {[%emt 0:06:17]} 27. Rxd8 {[%emt 0:00:41]} Qxd8 {[%emt 0:00:37]} 28. Nh5+ {[%emt 0:01:42]} gxh5 {[%emt 0:00:20]} 29. axb5 {[%emt 0:00:02]} Qd6 {[%emt 0:03:07]} 30. h3 {[%emt 0:06:34]} Bc8 {[%emt 0:02:16]} 31. f4 {[%emt 0:09:37]} Qg6 {[%emt 0:01:31]} 32. fxe5 {[%emt 0:00:22]} Bxh3 {[%emt 0:01:34]} 33. Bh4 {[%emt 0:00:11]} Nd7 {[%emt 0:02:46]} 34. Bf6+ 1-0

[Event "XLII Barbera Open 2019"]
[Site "Barbera"]
[Date "2019.07.08"]
[Round "5.8"]
[White "Valenzuela Gomez, Fernando"]
[Black "Cruz, Filemon"]
[Result "1-0"]
[ECO "E92"]
[WhiteElo "2394"]
[BlackElo "2304"]
[Annotator "NA"]
[PlyCount "61"]
[EventDate "2019.07.04"]
[EventType "swiss"]
[EventCountry "ESP"]
[SourceTitle "playchess.com"]
[Source "ChessBase"]
[SourceQuality "1"]
[TimeControl "5400+30"]

1. d4 {[%emt 0:03:35]} Nf6 {[%emt 0:01:08]} 2. c4 {[%emt 0:00:28]} g6 {[%emt 0:01:26]} 3. Nc3 {[%emt 0:00:22]} Bg7 {[%emt 0:00:11]} 4. e4 {[%emt 0:00:05]} d6 {[%emt 0:00:06]} 5. Nf3 {[%emt 0:01:10]} O-O {[%emt 0:00:11]} 6. Be2 {[%emt 0:00:06]} e5 {[%emt 0:00:12]} 7. d5 {[%emt 0:00:14]} a5 {[%emt 0:01:35]} 8. Bg5 {[%emt 0:00:27]} h6 {[%emt 0:00:30]} 9. Be3 {[%emt 0:00:05]} Ng4 {[%emt 0:00:43]} 10. Bd2 {[%emt 0:00:11]} f5 {[%emt 0:00:38]} 11. h3 {[%emt 0:01:04]} Nf6 {[%emt 0:00:39]} 12. exf5 {[%emt 0:01:03]} gxf5 {[%emt 0:03:27]} 13. Qc1 {[%emt 0:01:59]} f4 {[%emt 0:05:39]} 14. g3 {[%emt 0:09:30]} e4 {[%emt 0:11:02]} 15. Nh4 {[%emt 0:02:10]} e3 {[%emt 0:02:41]} 16. fxe3 {[%emt 0:01:22]} fxg3 {[%emt 0:00:17]} 17. Ng6 {[%emt 0:00:27]} Rf7 {[%emt 0:16:04]} 18. Qc2 {[%emt 0:00:23]} Na6 {[%emt 0:01:00]} 19. O-O-O {[%emt 0:04:57]} c6 {[%emt 0:10:39]} 20. Nf4 {[%emt 0:07:20]} Nb4 {[%emt 0:06:41]} 21. Qg6 {[%emt 0:02:43]} cxd5 {[%emt 0:03:40]} 22. cxd5 {[%emt 0:13:53]} Qb6 {[%emt 0:04:56]} 23. Ne6 {[%emt 0:07:32]} Nbxd5 {[%emt 0:03:38]} 24. Nxd5 {[%emt 0:09:15]} Qc6+ {[%emt 0:01:31]} 25. Bc3 {[%emt 0:05:11]} Bxe6 {[%emt 0:04:12]} 26. Nxf6+ {[%emt 0:05:54]} Rxf6 {[%emt 0:00:07]} 27. Qxg3 {[%emt 0:00:19]} Rc8 {[%emt 0:10:37]} 28. Rhg1 {[%emt 0:05:14]} Rc7 {[%emt 0:00:19]} 29. Rxd6 {[%emt 0:03:50]} Qe8 {[%emt 0:01:41]} 30. Bc4 {[%emt 0:06:04]} Qa4 {[%emt 0:05:42]} 31. Rd8+ {[%emt 0:01:31]} 1-0

[Event "XLII Barbera Open 2019"]
[Site "Barbera"]
[Date "2019.07.08"]
[Round "5.9"]
[White "Perez Mitjans, Orelvis"]
[Black "Lacrosse, Marc"]
[Result "1-0"]
[ECO "C52"]
[WhiteElo "2416"]
[BlackElo "2189"]
[Annotator "NA"]
[PlyCount "40"]
[EventDate "2019.07.04"]
[EventType "swiss"]
[EventCountry "ESP"]
[SourceTitle "playchess.com"]
[Source "ChessBase"]
[SourceQuality "1"]
[TimeControl "5400+30"]

1. e4 {[%emt 0:03:31]} e5 {[%emt 0:00:26]} 2. Nf3 {[%emt 0:00:08]} Nc6 {[%emt 0:00:11]} 3. Bc4 {[%emt 0:01:00]} Bc5 {[%emt 0:00:40]} 4. b4 {[%emt 0:00:28]} Bxb4 {[%emt 0:01:54]} 5. c3 {[%emt 0:00:06]} Ba5 {[%emt 0:01:29]} 6. O-O {[%emt 0:00:23]} d6 {[%emt 0:09:45]} 7. d4 {[%emt 0:04:54]} Bb6 {[%emt 0:08:11]} 8. dxe5 {[%emt 0:25:05]} dxe5 {[%emt 0:10:10]} 9. Bd5 {[%emt 0:05:29]} Bd7 {[%emt 0:15:13]} 10. Qb3 {[%emt 0:14:08]} Qf6 {[%emt 0:03:54]} 11. Bg5 {[%emt 0:02:14]} Qg6 {[%emt 0:00:28]} 12. Nbd2 {[%emt 0:01:20]} Nge7 {[%emt 0:15:35]} 13. Nc4 {[%emt 0:05:44]} f6 {[%emt 0:02:07]} 14. Be3 {[%emt 0:01:23]} Bh3 {[%emt 0:15:16]} 15. Ne1 {[%emt 0:00:26]} Nd8 {[%emt 0:01:11]} 16. Qa3 {[%emt 0:07:27]} Bxe3 {[%emt 0:05:11]} 17. Nxe3 {[%emt 0:00:27]} Be6 {[%emt 0:04:04]} 18. f4 {[%emt 0:03:15]} exf4 {[%emt 0:00:34]} 19. Rxf4 {[%emt 0:02:17]} Qf7 20. Nf3 {[%emt 0:04:25]} Ng6 1-0